bitfinex-derivatives/quotes_BTCF0:USTF0_20240905
["timestamp","ask_amount","ask_price","bid_price","bid_amount"]
[1725577279955,0.0042,56183.0,56182.0,0.21]
[1725577279956,0.090537,56183.0,56182.0,0.21]
[1725577280156,0.089017,56183.0,56182.0,0.21]
[1725577281364,0.3608,56188.0,56182.0,0.5708]
[1725577281556,0.44981,56188.0,56187.0,0.21]
[1725577281756,0.08901,56188.0,56187.0,0.5708]
[1725577281956,0.08901,56188.0,56187.0,0.21]
[1725577282259,0.08901,56188.0,56187.0,0.5708]
[1725577282561,0.08901,56188.0,56187.0,0.21]
[1725577282967,0.08901,56188.0,56187.0,0.211]
[1725577284368,0.08901,56188.0,56187.0,0.212]
[1725577290367,0.08901,56188.0,56187.0,0.002]
[1725577294374,0.17802,56188.0,56187.0,0.002]
[1725577307381,0.17802,56188.0,56184.0,0.089015]
[1725577307382,1.13392,56188.0,56184.0,0.0529069]
[1725577307684,0.00471024,56190.0,56180.0,0.0084]
[1725577307685,0.08902,56181.0,56180.0,0.0084]
[1725577307894,0.091021,56181.0,56180.0,0.22436147]
[1725577308084,0.089021,56181.0,56180.0,0.18126271]
[1725577308266,0.089021,56181.0,56180.0,0.27028371]
[1725577309579,0.089021,56181.0,56180.0,0.37672223]
[1725577310375,0.090021,56181.0,56180.0,0.37772223]
[1725577311175,0.091021,56181.0,56180.0,0.28970123]
[1725577311785,0.629863,56181.0,56180.0,0.13766271]
[1725577311980,0.629863,56181.0,56180.0,0.09074907]
[1725577312182,0.629863,56181.0,56180.0,0.002]
[1725577312990,2.383263,56181.0,56177.0,0.00026704]
[1725577313174,2.383263,56181.0,56173.0,0.09294907]
[1725577313175,0.267078,56177.0,56176.0,3.4e-07]
[1725577313370,0.267078,56177.0,56173.0,7.4e-07]
[1725577313371,0.089031,56174.0,56173.0,7.4e-07]
[1725577313577,0.3628,56174.0,56172.0,7.4e-07]
[1725577313775,0.3628,56174.0,56165.0,0.0042]
[1725577313776,0.084844,56166.0,56165.0,0.0042]
[1725577314089,0.3608,56168.0,56163.0,0.00471184]
[1725577314274,0.089049,56163.0,56161.0,0.089051]
[1725577314474,0.002,56162.0,56160.0,0.29901611]
[1725577314696,0.002,56161.0,56160.0,0.21026704]
[1725577314986,0.089052,56161.0,56160.0,0.21026704]
[1725577315188,0.171104,56161.0,56160.0,0.00485845]
[1725577315407,0.260156,56161.0,56160.0,0.00026704]
[1725577315592,0.178122,56155.0,56154.0,0.0042]
[1725577315783,0.299061,56155.0,56147.0,0.0482]
[1725577315984,0.002,56148.0,56147.0,0.05295524]
[1725577316186,0.082072,56149.0,56147.0,0.05295524]
[1725577316575,0.095,56154.0,56147.0,0.05295524]
[1725577316781,0.09526704,56154.0,56150.0,0.21]
[1725577316986,0.08226704,56154.0,56150.0,0.21]
[1725577317176,0.089067,56151.0,56150.0,0.21]
[1725577318888,0.00026704,56154.0,56151.0,0.089066]
[1725577319084,0.00026704,56154.0,56152.0,1.5]
[1725577319293,0.00126704,56154.0,56152.0,1.5]
[1725577319680,0.00026704,56154.0,56152.0,1.5]
[1725577319882,0.00026704,56154.0,56152.0,1.589065]
[1725577320694,0.00026704,56154.0,56153.0,0.089064]
[1725577321277,0.00026704,56154.0,56153.0,1.272404]
[1725577321695,0.00026704,56154.0,56153.0,2.772404]
[1725577322594,0.00026704,56154.0,56153.0,2.86623481]
[1725577323176,0.00026704,56154.0,56153.0,2.86723481]
[1725577323386,0.00026704,56154.0,56153.0,2.77817081]
[1725577323695,0.00026704,56154.0,56153.0,2.17817081]
[1725577323891,0.00126704,56154.0,56153.0,2.78417081]
[1725577324098,0.00126704,56154.0,56153.0,2.18417081]
[1725577324395,0.00126704,56154.0,56153.0,2.78417081]
[1725577324690,0.00126704,56154.0,56153.0,1.51176681]
[1725577324892,0.00126704,56154.0,56153.0,0.01176681]
[1725577324893,0.17939304,56154.0,56153.0,0.01176681]
[1725577325087,1.40369604,56154.0,56153.0,0.015]
[1725577325406,1.40369604,56154.0,56145.0,0.0042]
[1725577325407,0.17815,56146.0,56145.0,0.0042]
[1725577325580,0.08908,56143.0,56140.0,0.3608]
[1725577325780,0.09108,56143.0,56142.0,0.00502264]
[1725577325985,0.08908,56143.0,56142.0,0.00502264]
[1725577326196,0.08108,56143.0,56142.0,0.00502264]
[1725577326987,0.08108,56143.0,56142.0,0.00902264]
[1725577327691,0.08108,56143.0,56142.0,0.00426704]
[1725577328285,0.44188,56143.0,56142.0,0.00426704]
[1725577329191,0.53096,56143.0,56142.0,0.00426704]
[1725577333888,0.44188,56143.0,56142.0,1.50426704]
[1725577335397,0.08108,56143.0,56142.0,1.50426704]
[1725577336497,0.091076,56146.0,56142.0,1.50426704]
[1725577336700,0.091076,56146.0,56145.0,0.089077]
[1725577338407,0.002,56146.0,56145.0,0.089077]
[1725577338611,0.365,56160.0,56153.0,0.089064]
[1725577338907,0.449845,56165.0,56153.0,0.538928]
[1725577339094,0.449845,56165.0,56153.0,1.673168]
[1725577339598,0.3608,56165.0,56153.0,1.673168]
[1725577339804,0.01026704,56154.0,56153.0,2.033968]
[1725577341307,0.0042,56167.0,56156.0,0.089059]
[1725577341514,0.08904,56169.0,56166.0,0.089044]
[1725577341703,0.08904,56169.0,56165.0,0.21]
[1725577341901,0.002,56166.0,56165.0,0.299045]
[1725577342300,0.002,56166.0,56165.0,1.799045]
[1725577343213,0.008,56166.0,56165.0,1.799045]
[1725577344308,0.013,56166.0,56165.0,1.800045]
[1725577345098,0.008,56166.0,56165.0,1.80569334]
[1725577346097,0.002,56166.0,56165.0,0.09669334]
[1725577346305,0.091044,56166.0,56165.0,0.003]
[1725577347506,0.091044,56166.0,56165.0,0.001]
[1725577347807,0.096044,56166.0,56165.0,0.001]
[1725577348589,0.089045,56165.0,56164.0,0.00456197]
[1725577348796,0.089048,56164.0,56162.0,0.450889]
[1725577348996,0.091048,56163.0,56162.0,0.449849]
[1725577349204,0.089048,56163.0,56162.0,0.449849]
[1725577349400,0.089048,56163.0,56162.0,0.089049]
[1725577350298,0.090048,56163.0,56162.0,0.089049]
[1725577351002,0.091048,56163.0,56162.0,0.089049]
[1725577351207,0.091048,56163.0,56162.0,0.09376928]
[1725577351910,0.091048,56163.0,56162.0,0.00472028]
[1725577352207,0.091048,56163.0,56162.0,0.08905]
[1725577352208,0.090048,56163.0,56162.0,0.08905]
[1725577352400,0.090048,56163.0,56162.0,1.58905]
[1725577352805,0.089048,56163.0,56162.0,1.58905]
[1725577353311,0.090048,56163.0,56162.0,1.58905]
[1725577353813,0.091048,56163.0,56162.0,1.58905]
[1725577362114,0.091048,56163.0,56162.0,0.08905]
[1725577362511,0.08905,56162.0,56160.0,0.00026704]
[1725577362716,0.08905,56162.0,56151.0,0.3608]
[1725577362717,0.178118,56156.0,56151.0,0.3608]
[1725577363020,0.178118,56156.0,56152.0,1.589065]
[1725577363021,0.091059,56156.0,56152.0,1.589065]
[1725577363320,0.002,56153.0,56152.0,1.589065]
[1725577363713,0.001,56153.0,56152.0,1.59377494]
[1725577363911,0.090064,56153.0,56152.0,1.59377494]
[1725577364318,0.090064,56153.0,56152.0,1.50470994]
[1725577364518,0.091064,56153.0,56152.0,1.51470994]
[1725577364915,0.091064,56153.0,56152.0,1.60377594]
[1725577364916,0.090064,56153.0,56152.0,1.60377594]
[1725577365509,0.089064,56153.0,56152.0,1.60377594]
[1725577366324,0.090064,56153.0,56152.0,1.60477594]
[1725577369027,0.090064,56153.0,56152.0,1.51570994]
[1725577369028,0.179128,56153.0,56152.0,1.51570994]
[1725577370926,0.539928,56153.0,56152.0,1.51570994]
[1725577371232,1.674168,56153.0,56152.0,1.511]
[1725577371524,0.178144,56148.0,56147.0,0.00026704]
[1725577371725,0.540944,56148.0,56147.0,0.00026704]
[1725577373027,0.183144,56148.0,56147.0,0.00026704]
[1725577373930,0.185144,56148.0,56147.0,0.00026704]
[1725577377532,0.007,56148.0,56147.0,0.08934104]
[1725577377929,0.096072,56148.0,56147.0,0.08934104]
[1725577378834,0.093072,56148.0,56147.0,0.08934104]
[1725577379031,0.091072,56148.0,56147.0,0.00026704]
[1725577379220,0.451872,56148.0,56147.0,0.00126704]
[1725577379425,0.091072,56148.0,56147.0,0.00126704]
[1725577379627,0.093072,56148.0,56147.0,0.00126704]
[1725577379832,0.093072,56148.0,56147.0,0.00026704]
[1725577380030,0.095072,56148.0,56147.0,0.00026704]
[1725577380433,0.455872,56148.0,56147.0,0.00026704]
[1725577380639,0.095072,56148.0,56147.0,0.00026704]
[1725577380935,0.184144,56148.0,56147.0,0.00026704]
[1725577383838,0.095072,56148.0,56147.0,0.00026704]
[1725577385138,0.095072,56148.0,56147.0,0.08934104]
[1725577385345,0.006,56148.0,56147.0,0.08934104]
[1725577386535,0.095072,56148.0,56147.0,0.08934104]
[1725577393750,0.095072,56148.0,56147.0,0.00026704]
[1725577394050,1.407536,56148.0,56147.0,0.00026704]
[1725577394253,0.178166,56141.0,56140.0,0.0041]
[1725577394549,0.08909,56137.0,56136.0,0.00526307]
[1725577394751,0.089093,56135.0,56134.0,0.089094]
[1725577394959,0.091093,56135.0,56134.0,0.089094]
[1725577395143,0.089093,56135.0,56134.0,0.089094]
[1725577395660,0.086093,56135.0,56134.0,0.089094]
[1725577396452,0.087093,56135.0,56134.0,0.089094]
[1725577396657,0.087093,56135.0,56131.0,0.00104]
[1725577396658,0.089098,56132.0,56131.0,0.00104]
[1725577396855,0.089098,56132.0,56129.0,0.07524985]
[1725577396856,0.089101,56130.0,56129.0,0.00026704]
[1725577397043,0.086101,56130.0,56129.0,0.00026704]
[1725577397248,0.088101,56130.0,56129.0,0.00026704]
[1725577397461,0.086101,56130.0,56129.0,0.00543696]
[1725577397975,0.086101,56130.0,56129.0,0.00026704]
[1725577397976,0.175202,56130.0,56129.0,0.00026704]
[1725577398277,0.536002,56130.0,56129.0,0.00026704]
[1725577398573,1.671482,56130.0,56129.0,0.00026704]
[1725577399170,0.178224,56123.0,56122.0,0.0041]
[1725577399368,0.178226,56122.0,56121.0,0.00119433]
[1725577399675,0.631526,56122.0,56121.0,0.00119433]
[1725577401475,1.766086,56122.0,56121.0,0.00119433]
[1725577401778,1.855199,56122.0,56121.0,0.00119433]
[1725577402881,2.215999,56122.0,56121.0,0.00119433]
[1725577404272,0.992326,56122.0,56121.0,0.00119433]
[1725577404474,0.99764245,56122.0,56121.0,0.00119433]
[1725577405493,0.089113,56122.0,56121.0,0.00119433]
[1725577405780,0.002,56123.0,56121.0,0.00119433]
[1725577406173,0.089113,56122.0,56121.0,0.00119433]
[1725577406480,0.089113,56122.0,56121.0,1.59030933]
[1725577408367,0.089113,56122.0,56121.0,1.59550403]
[1725577409171,0.002,56123.0,56122.0,0.089113]
[1725577409573,0.002,56123.0,56122.0,0.138913]
[1725577411281,0.091112,56123.0,56122.0,0.138913]
[1725577412080,0.002,56123.0,56122.0,0.138913]
[1725577414688,0.002,56123.0,56122.0,1.451699]
[1725577416880,0.002,56123.0,56122.0,1.812499]
[1725577417286,0.00026704,56127.0,56126.0,0.178214]
[1725577417594,0.00026704,56127.0,56126.0,0.388214]
[1725577417890,0.00026704,56127.0,56126.0,1.522734]
[1725577418487,0.00526704,56127.0,56126.0,1.522734]
[1725577418686,0.00926704,56127.0,56126.0,1.522734]
[1725577420487,0.00926704,56127.0,56126.0,0.922734]
[1725577422593,0.00926704,56127.0,56126.0,0.388214]
[1725577425989,0.00926704,56127.0,56126.0,0.749014]
[1725577427800,0.00926704,56127.0,56126.0,0.838121]
[1725577427999,0.0041,56134.0,56126.0,1.972641]
[1725577428202,0.0041,56137.0,56136.0,0.178182]
[1725577428503,0.32936729,56144.0,56136.0,0.178182]
[1725577428504,0.0041,56144.0,56138.0,0.089088]
[1725577428685,0.0041,56144.0,56138.0,1.589088]
[1725577429091,0.00436704,56144.0,56138.0,1.589088]
[1725577429290,0.00436704,56144.0,56138.0,1.678176]
[1725577429491,0.089083,56141.0,56138.0,1.678176]
[1725577430096,0.00436704,56144.0,56138.0,1.589088]
[1725577430097,0.3748,56139.0,56138.0,1.589088]
[1725577430694,0.463886,56139.0,56138.0,1.589088]
[1725577430893,0.477886,56139.0,56138.0,1.589088]
[1725577431199,0.117086,56139.0,56138.0,1.589088]
[1725577434300,0.117086,56139.0,56138.0,1.59429179]
[1725577434496,0.566972,56139.0,56138.0,0.00520379]
[1725577434695,0.178188,56134.0,56133.0,0.00026704]
[1725577434897,0.840082,56134.0,56133.0,0.00026704]
[1725577436003,0.754988,56134.0,56133.0,0.00026704]
[1725577437805,0.762988,56134.0,56133.0,0.00026704]
[1725577438099,0.767988,56134.0,56133.0,0.00026704]
[1725577438501,0.759988,56134.0,56133.0,0.00026704]
[1725577438702,0.765988,56134.0,56133.0,0.00026704]
[1725577439001,0.766988,56134.0,56133.0,0.00026704]
[1725577439407,0.770988,56134.0,56133.0,0.00026704]
[1725577440901,0.17821,56127.0,56126.0,0.0041]
[1725577441204,0.17821,56127.0,56119.0,0.05442917]
[1725577441205,0.089117,56120.0,56119.0,0.0055927]
[1725577441398,0.091117,56120.0,56119.0,0.0014927]
[1725577441593,0.089117,56120.0,56119.0,0.0014927]
[1725577441803,0.134217,56120.0,56119.0,0.00666311]
[1725577442302,0.223334,56120.0,56119.0,0.0014927]
[1725577442493,0.758894,56120.0,56119.0,0.0054927]
[1725577442695,0.759894,56120.0,56119.0,0.0084927]
[1725577444594,0.758894,56120.0,56119.0,0.0044927]
[1725577444907,0.758894,56120.0,56119.0,0.0084927]
[1725577445101,0.758894,56120.0,56119.0,0.0054927]
[1725577445410,0.757894,56120.0,56119.0,0.0084927]
[1725577448105,0.847011,56120.0,56119.0,0.0084927]
[1725577449499,0.134217,56120.0,56119.0,0.0084927]
[1725577449805,0.223334,56120.0,56119.0,0.0084927]
[1725577450698,1.447011,56120.0,56119.0,0.0084927]
[1725577459515,0.912451,56120.0,56119.0,0.0084927]
[1725577459709,1.447011,56120.0,56119.0,0.0084927]
[1725577462006,2.168611,56120.0,56119.0,0.0084927]
[1725577463914,1.568611,56120.0,56119.0,0.0084927]
[1725577465522,2.168611,56120.0,56119.0,0.0084927]
[1725577465704,0.899834,56120.0,56119.0,0.0084927]
[1725577465903,0.810717,56120.0,56119.0,0.0084927]
[1725577466308,0.899834,56120.0,56119.0,0.0084927]
[1725577468315,0.539034,56120.0,56119.0,0.0084927]
[1725577470912,0.449917,56120.0,56119.0,0.0084927]
[1725577471317,0.449917,56120.0,56119.0,0.0976107]
[1725577485633,0.449917,56120.0,56119.0,0.0084927]
[1725577485634,0.749034,56120.0,56119.0,0.0084927]
[1725577490932,0.75436957,56120.0,56119.0,0.0084927]
[1725577492225,0.749034,56120.0,56119.0,0.0084927]
[1725577492436,0.539034,56120.0,56119.0,0.0084927]
[1725577494730,0.178234,56120.0,56119.0,0.0084927]
[1725577497534,0.178234,56120.0,56119.0,1.5084927]
[1725577500539,0.449913,56122.0,56121.0,0.089115]
[1725577501238,0.449913,56122.0,56121.0,1.589115]
[1725577501838,0.449913,56122.0,56121.0,1.590115]
[1725577502044,0.449913,56122.0,56121.0,1.592115]
[1725577502232,0.449913,56122.0,56121.0,0.092115]
[1725577502437,0.649026,56122.0,56121.0,0.003]
[1725577504049,0.449913,56122.0,56121.0,0.003]
[1725577504546,0.3608,56122.0,56121.0,0.202115]
[1725577505641,0.449913,56122.0,56121.0,0.202115]
[1725577506040,0.3608,56122.0,56121.0,0.202115]
[1725577506239,0.449913,56122.0,56121.0,0.202115]
[1725577506644,0.449913,56122.0,56121.0,0.25505147]
[1725577506834,0.449913,56122.0,56121.0,0.20742055]
[1725577507038,0.449913,56122.0,56121.0,0.09742055]
[1725577509940,0.089113,56122.0,56121.0,0.09742055]
[1725577510438,0.089113,56122.0,56121.0,0.20742055]
[1725577516766,0.00026729,56125.0,56121.0,1.61366555]
[1725577516945,0.0061,56127.0,56121.0,1.61366555]
[1725577516946,0.002,56127.0,56126.0,0.267321]
[1725577517449,0.002,56127.0,56126.0,1.4548105]
[1725577517855,0.002,56127.0,56126.0,1.47272381]
[1725577518052,0.006,56127.0,56126.0,1.47272381]
[1725577518256,0.006,56127.0,56126.0,1.401841]
[1725577518756,0.01,56127.0,56126.0,1.401841]
[1725577519549,0.01,56127.0,56126.0,0.801841]
[1725577520253,0.01,56127.0,56126.0,1.401841]
[1725577520560,0.01,56127.0,56126.0,0.801841]
[1725577521958,0.01,56127.0,56126.0,1.401841]
[1725577522154,0.01,56127.0,56126.0,0.801841]
[1725577523757,0.01,56127.0,56126.0,1.162641]
[1725577523948,0.01,56127.0,56126.0,2.662641]
[1725577524649,0.01,56127.0,56126.0,3.262641]
[1725577527555,0.01,56127.0,56126.0,2.901841]
[1725577527858,0.01,56127.0,56126.0,3.262641]
[1725577528060,0.01,56127.0,56126.0,2.901841]
[1725577528265,0.01,56127.0,56126.0,3.262641]
[1725577529567,0.01,56127.0,56126.0,3.31544209]
[1725577531763,0.01,56127.0,56126.0,2.039014]
[1725577531964,0.099105,56127.0,56126.0,1.949907]
[1725577535473,0.01,56127.0,56126.0,1.949907]
[1725577544582,0.099105,56127.0,56126.0,1.949907]
[1725577544780,0.54901,56127.0,56126.0,1.589107]
[1725577545682,0.54901,56127.0,56126.0,1.64200168]
[1725577545683,0.18821,56127.0,56126.0,1.64200168]
[1725577547085,0.18821,56127.0,56126.0,1.589107]
[1725577547669,0.099105,56127.0,56126.0,1.699107]
[1725577547874,0.01,56127.0,56126.0,1.788214]
[1725577548184,0.01,56127.0,56126.0,1.84110868]
[1725577549592,0.01,56127.0,56126.0,1.788214]
[1725577552091,0.01,56127.0,56126.0,1.841169]
[1725577553082,0.01,56127.0,56126.0,1.752062]
[1725577553386,0.01,56127.0,56126.0,1.841169]
[1725577555085,0.01,56127.0,56126.0,1.85909681]
[1725577555287,0.01,56127.0,56126.0,2.21989681]
[1725577557687,0.01,56127.0,56126.0,2.059907]
[1725577557887,0.01,56127.0,56126.0,1.699107]
[1725577561184,0.01,56127.0,56126.0,1.76973986]
[1725577561895,0.009,56127.0,56126.0,1.76973986]
[1725577562291,0.006,56127.0,56126.0,1.76973986]
[1725577562694,0.005,56127.0,56126.0,1.76973986]
[1725577562894,0.005,56127.0,56126.0,1.699107]
[1725577563193,0.005,56127.0,56126.0,1.877321]
[1725577563994,0.005,56127.0,56126.0,1.96607007]
[1725577564194,0.005,56127.0,56126.0,1.877321]
[1725577564998,0.004,56127.0,56126.0,3.011841]
[1725577565204,0.003,56127.0,56126.0,3.10059007]
[1725577565710,0.00026729,56132.0,56131.0,0.178198]
[1725577565895,0.00026729,56132.0,56131.0,0.6580771]
[1725577566201,0.00026729,56132.0,56131.0,1.2816161]
[1725577566697,0.00026729,56132.0,56131.0,1.4173827]
[1725577566901,0.0041,56139.0,56138.0,0.178176]
[1725577567100,0.134977,56145.0,56144.0,0.089078]
[1725577567290,0.134977,56145.0,56144.0,0.199078]
[1725577568591,0.143977,56145.0,56144.0,0.199078]
[1725577568999,0.153977,56145.0,56144.0,0.200078]
[1725577571496,0.153977,56145.0,56144.0,0.20539997]
[1725577573791,0.514777,56145.0,56144.0,0.20539997]
[1725577575402,0.153977,56145.0,56144.0,0.20539997]
[1725577577400,0.0649,56145.0,56144.0,0.20539997]
[1725577577602,0.153977,56145.0,56144.0,0.20539997]
[1725577577806,0.140977,56145.0,56144.0,0.20439997]
[1725577578110,0.006,56145.0,56144.0,0.38255597]
[1725577578306,0.003,56145.0,56144.0,0.74335597]
[1725577578502,0.003,56145.0,56144.0,0.79629101]
[1725577578708,0.00026729,56150.0,56149.0,0.089071]
[1725577578904,0.00026729,56150.0,56149.0,0.449871]
[1725577579103,0.00026729,56150.0,56149.0,0.559871]
[1725577579815,0.00026729,56150.0,56149.0,2.059871]
[1725577580900,0.08933629,56150.0,56149.0,2.059871]
[1725577581098,0.178154,56145.0,56144.0,0.00640197]
[1725577581318,0.089085,56140.0,56139.0,0.00026729]
[1725577581612,0.089085,56140.0,56139.0,0.11026729]
[1725577581613,0.53897,56140.0,56139.0,0.11026729]
[1725577581797,0.58727,56140.0,56139.0,0.11026729]
[1725577581998,0.58727,56140.0,56139.0,0.00026729]
[1725577582215,0.58727,56140.0,56139.0,0.00565893]
[1725577582520,0.137385,56140.0,56139.0,0.00026729]
[1725577582701,0.138385,56140.0,56139.0,0.00526729]
[1725577584114,0.138385,56140.0,56139.0,0.01026729]
[1725577584615,0.499185,56140.0,56139.0,0.01026729]
[1725577585019,0.501185,56140.0,56139.0,0.00526729]
[1725577585326,0.140385,56140.0,56139.0,0.00526729]
[1725577585506,0.500185,56140.0,56139.0,0.00026729]
[1725577585708,0.501185,56140.0,56139.0,0.00026729]
[1725577585920,0.504185,56140.0,56139.0,0.00026729]
[1725577586117,0.501185,56140.0,56139.0,0.00026729]
[1725577586428,0.504185,56140.0,56139.0,0.00026729]
[1725577587616,0.455885,56140.0,56139.0,0.08935329]
[1725577587817,0.3638,56140.0,56139.0,0.13465329]
[1725577588016,0.3648,56140.0,56139.0,0.08935329]
[1725577588523,0.3648,56140.0,56139.0,1.58935329]
[1725577588700,0.453885,56140.0,56139.0,1.58935329]
[1725577589605,0.093085,56140.0,56139.0,1.58935329]
[1725577590006,0.093085,56140.0,56139.0,0.00026729]
[1725577590317,0.178192,56133.0,56132.0,0.0041]
[1725577590507,0.089102,56129.0,56128.0,0.450823]
[1725577590715,0.091102,56129.0,56128.0,0.66511668]
[1725577590905,0.089102,56129.0,56128.0,0.66511668]
[1725577591215,0.089102,56129.0,56128.0,0.21521368]
[1725577591216,0.178204,56129.0,56128.0,0.21521368]
[1725577591812,0.179204,56129.0,56128.0,0.22221368]
[1725577592021,0.173204,56129.0,56128.0,0.22221368]
[1725577592719,0.174204,56129.0,56128.0,0.22821368]
[1725577593718,0.174204,56129.0,56128.0,0.013]
[1725577593929,0.174204,56129.0,56128.0,1.513]
[1725577594420,0.175204,56129.0,56128.0,1.506]
[1725577594723,0.177204,56129.0,56128.0,1.5]
[1725577595322,0.175204,56129.0,56128.0,1.5]
[1725577595515,0.183204,56129.0,56128.0,1.501]
[1725577601631,0.272306,56129.0,56128.0,1.501]
[1725577602925,0.183204,56129.0,56128.0,1.501]
[1725577606114,0.544004,56129.0,56128.0,1.501]
[1725577606612,0.094102,56129.0,56128.0,1.501]
[1725577607925,0.094102,56129.0,56128.0,1.700104]
[1725577609415,0.094102,56129.0,56128.0,1.590104]
[1725577611329,0.094102,56129.0,56128.0,1.800104]
[1725577611522,0.011,56129.0,56128.0,1.800104]
[1725577612413,0.011,56129.0,56128.0,2.21375619]
[1725577612617,0.011,56129.0,56128.0,2.2587854]
[1725577612827,0.011,56129.0,56128.0,2.3072854]
[1725577614118,0.011,56129.0,56128.0,2.298508]
[1725577614330,0.011,56129.0,56128.0,2.05226587]
[1725577614526,0.011,56129.0,56128.0,2.26226587]
[1725577614728,0.011,56129.0,56128.0,2.21376587]
[1725577614919,0.011,56129.0,56128.0,2.160904]
[1725577615627,0.100102,56129.0,56128.0,2.160904]
[1725577615923,0.100102,56129.0,56128.0,0.001]
[1725577615924,0.550004,56129.0,56128.0,0.001]
[1725577616927,1.173586,56129.0,56128.0,0.001]
[1725577617720,0.639106,56129.0,56128.0,0.001]
[1725577618224,1.173586,56129.0,56128.0,0.001]
[1725577618623,0.639106,56129.0,56128.0,0.001]
[1725577619721,0.64427509,56129.0,56128.0,0.001]
[1725577620430,0.550004,56129.0,56128.0,0.001]
[1725577621631,0.189204,56129.0,56128.0,0.001]
[1725577622624,0.100102,56129.0,56128.0,0.211]
[1725577622929,0.011,56129.0,56128.0,0.300104]
[1725577624420,0.002,56133.0,56128.0,0.300104]
[1725577624421,0.002,56133.0,56132.0,0.178196]
[1725577624623,0.002,56133.0,56132.0,0.44105787]
[1725577624826,0.00026729,56134.0,56133.0,0.178192]
[1725577625029,0.0041,56140.0,56139.0,0.089086]
[1725577625218,0.32926729,56147.0,56139.0,0.5708]
[1725577625422,0.0041,56147.0,56144.0,0.659878]
[1725577625628,0.134666,56152.0,56144.0,0.659878]
[1725577625629,0.449868,56151.0,56144.0,0.659878]
[1725577625934,0.00026729,56150.0,56148.0,0.089072]
[1725577626235,0.00026729,56150.0,56149.0,0.21]
[1725577626532,0.08933629,56150.0,56149.0,0.21]
[1725577627233,0.08933629,56150.0,56149.0,0.299071]
[1725577627234,0.00026729,56150.0,56149.0,0.299071]
[1725577628426,0.00026729,56150.0,56149.0,0.300071]
[1725577628427,0.01326729,56150.0,56149.0,0.300071]
[1725577629226,0.01326729,56150.0,56149.0,0.30531065]
[1725577629638,0.02426729,56150.0,56149.0,0.30631065]
[1725577630234,0.01326729,56150.0,56149.0,0.30931065]
[1725577630644,0.00026729,56150.0,56149.0,0.30831065]
[1725577631533,0.08933629,56150.0,56149.0,0.30931065]
[1725577632838,0.08933629,56150.0,56149.0,0.30731065]
[1725577641856,0.00026729,56150.0,56149.0,0.30731065]
[1725577642041,0.0041,56155.0,56154.0,0.178126]
[1725577642346,0.089055,56159.0,56158.0,0.089056]
[1725577642649,0.089055,56159.0,56158.0,0.299056]
[1725577644545,0.098055,56159.0,56158.0,0.300056]
[1725577645335,0.098055,56159.0,56158.0,0.301056]
[1725577645336,0.106055,56159.0,56158.0,0.301056]
[1725577647440,0.106055,56159.0,56158.0,0.30623132]
[1725577651349,0.284165,56159.0,56158.0,0.00717532]
[1725577651547,0.267189,56154.0,56153.0,0.00026729]
[1725577651749,0.269189,56154.0,56153.0,0.00026729]
[1725577651951,0.540926,56154.0,56153.0,0.00026729]
[1725577652949,0.542926,56154.0,56153.0,0.00026729]
[1725577653150,0.545926,56154.0,56153.0,0.00026729]
[1725577654037,0.096063,56154.0,56153.0,0.21026729]
[1725577654241,0.096063,56154.0,56153.0,0.29933129]
[1725577654553,0.456863,56154.0,56153.0,0.29933129]
[1725577661549,0.007,56154.0,56153.0,0.29933129]
[1725577666152,0.096063,56154.0,56153.0,0.29933129]
[1725577671771,0.007,56154.0,56153.0,0.80169857]
[1725577671958,0.007,56154.0,56153.0,0.74919529]
[1725577672159,0.007,56154.0,56153.0,2.24919529]
[1725577672469,0.007,56154.0,56153.0,2.30200931]
[1725577673566,0.007,56154.0,56153.0,2.24919529]
[1725577674568,0.007,56154.0,56153.0,2.30200931]
[1725577675574,0.007,56154.0,56153.0,2.24919529]
[1725577676676,0.007,56154.0,56153.0,2.33825929]
[1725577676860,0.007,56154.0,56153.0,2.38645929]
[1725577678770,0.007,56154.0,56153.0,2.43465929]
[1725577679572,0.0041,56161.0,56160.0,0.178106]
[1725577679779,0.00026632,56164.0,56163.0,0.178096]
[1725577681069,0.01426632,56164.0,56163.0,0.179096]
[1725577681373,0.01426632,56164.0,56163.0,0.001]
[1725577681374,0.46411332,56164.0,56163.0,0.001]
[1725577681577,0.10331332,56164.0,56163.0,0.001]
[1725577681770,0.46411332,56164.0,56163.0,0.001]
[1725577681971,0.55316032,56164.0,56163.0,0.001]
[1725577682172,1.68732032,56164.0,56163.0,0.001]
[1725577682679,1.77636732,56164.0,56163.0,0.001]
[1725577683276,1.79036732,56164.0,56163.0,0.002]
[1725577686063,1.61227332,56164.0,56163.0,0.002]
[1725577687581,1.52322632,56164.0,56163.0,0.002]
[1725577687774,1.61227332,56164.0,56163.0,0.002]
[1725577690470,1.59827332,56164.0,56163.0,0.002]
[1725577690677,1.60927332,56164.0,56163.0,0.002]
[1725577690879,1.60627332,56164.0,56163.0,0.002]
[1725577691487,1.00627332,56164.0,56163.0,0.002]
[1725577692687,0.47211332,56164.0,56163.0,0.002]
[1725577692979,0.47311332,56164.0,56163.0,0.002]
[1725577693184,0.47211332,56164.0,56163.0,0.002]
[1725577693684,0.46011332,56164.0,56163.0,0.001]
[1725577693880,0.38206632,56164.0,56163.0,0.091048]
[1725577697288,0.02126632,56164.0,56163.0,0.180096]
[1725577697580,0.02126632,56164.0,56163.0,1.769144]
[1725577698174,0.02126632,56164.0,56163.0,1.83946398]
[1725577698376,0.02126632,56164.0,56163.0,1.83945639]
[1725577698688,0.02126632,56164.0,56163.0,2.20025639]
[1725577698983,0.0973,56177.0,56170.0,0.178074]
[1725577699184,0.0973,56177.0,56170.0,0.089037]
[1725577699383,0.0973,56177.0,56176.0,0.089028]